bitfinex-derivatives/quotes_ETHF0:USTF0_20230903
["timestamp","ask_amount","ask_price","bid_price","bid_amount"]
[1693741015146,12.2407,1634.0,1633.9,3.99569991]
[1693741018049,15.10786352,1634.0,1633.9,3.99569991]
[1693741018947,12.2407,1634.0,1633.9,3.99569991]
[1693741019756,13.84604078,1634.0,1633.9,8.01267378]
[1693741020352,16.25405195,1634.0,1633.9,8.01267378]
[1693741021157,16.25405195,1634.0,1633.9,11.07305378]
[1693741022057,13.84604078,1634.0,1633.9,11.07305378]
[1693741022259,16.25405195,1634.0,1633.9,11.07305378]
[1693741022458,13.84604078,1634.0,1633.9,11.07305378]
[1693741022862,16.7132043,1634.0,1633.9,11.07305378]
[1693741023060,16.7132043,1634.0,1633.9,8.01267378]
[1693741023361,19.12121547,1634.0,1633.9,11.07305378]
[1693741023554,16.25405195,1634.0,1633.9,11.07305378]
[1693741026862,12.2407,1634.0,1633.9,7.05607991]
[1693741029264,12.2407,1634.0,1633.9,7.05605991]
[1693741032164,12.2407,1634.0,1633.9,3.99569991]
[1693741033259,12.2407,1634.0,1633.9,7.05607991]
[1693741033465,12.2407,1634.0,1633.9,3.99569991]
[1693741033861,12.2407,1634.0,1633.9,7.05607991]
[1693741034163,12.2407,1634.0,1633.9,3.99569991]
[1693741035166,12.2407,1634.0,1633.9,7.05607991]
[1693741036465,12.2407,1634.0,1633.9,3.99569991]
[1693741037164,12.2407,1634.0,1633.9,7.05607991]
[1693741037366,12.2407,1634.0,1633.9,3.99569991]
[1693741038266,15.10786352,1634.0,1633.9,3.99569991]
[1693741039264,15.10786352,1634.0,1633.9,7.05607991]
[1693741039664,12.2407,1634.0,1633.9,7.05607991]
[1693741040261,12.2407,1634.0,1633.9,3.99569991]
[1693741041167,12.2407,1634.0,1633.9,7.05607991]
[1693741041867,16.25405195,1634.0,1633.9,11.0732255]
[1693741043267,16.25405195,1634.0,1633.9,8.0128455]
[1693741048978,12.2407,1634.0,1633.9,3.99569991]
[1693741054381,12.2407,1634.0,1633.9,7.05607991]
[1693741054578,12.2407,1634.0,1633.9,3.99569991]
[1693741059086,12.2407,1634.0,1633.9,7.05607991]
[1693741063885,10.78585078,1634.0,1633.9,10.11645991]
[1693741064092,13.19386195,1634.0,1633.9,21.11409029]
[1693741064390,13.19386195,1634.0,1633.9,24.17447029]
[1693741064592,13.19386195,1634.0,1633.9,21.11409029]
[1693741064785,16.25403195,1634.0,1633.9,21.11409029]
[1693741067491,16.25403195,1634.0,1633.9,18.05371029]
[1693741069289,12.24068,1634.0,1633.9,18.05364224]
[1693741069496,16.25592508,1634.0,1633.9,18.05364224]
[1693741071997,12.24068,1634.0,1633.9,14.03646398]
[1693741079109,16.25592508,1634.0,1633.9,18.05352545]
[1693741086709,19.1230886,1634.0,1633.9,18.05352545]
[1693741087106,15.10784352,1634.0,1633.9,14.03646398]
[1693741089512,12.24068,1634.0,1633.9,14.03646398]
[1693741094115,16.25592508,1634.0,1633.9,18.05341904]
[1693741096018,19.1230886,1634.0,1633.9,16.02937604]
[1693741096517,16.25592508,1634.0,1633.9,16.02937604]
[1693741098521,19.1230886,1634.0,1633.9,16.02937604]
[1693741102118,15.10784352,1634.0,1633.9,12.01242098]
[1693741102626,12.24068,1634.0,1633.9,12.01242098]
[1693741107227,15.10784352,1634.0,1633.9,12.01242098]
[1693741109327,19.12303107,1634.0,1633.9,16.02936066]
[1693741110236,16.25586755,1634.0,1633.9,16.02936066]
[1693741117238,12.24068,1634.0,1633.9,12.01242098]
[1693741124242,13.84675502,1634.0,1633.9,12.01242098]
[1693741132355,16.25586755,1634.0,1633.9,16.02975558]
[1693741134253,19.12303107,1634.0,1633.9,16.02975558]
[1693741136156,16.25586755,1634.0,1633.9,16.02975558]
[1693741136759,19.12303107,1634.0,1633.9,16.02975558]
[1693741138560,17.51711855,1634.0,1633.9,16.02976042]
[1693741138762,16.25613838,1634.0,1633.9,16.02976042]
[1693741139257,16.25613838,1634.0,1633.9,19.09014042]
[1693741139465,12.24068,1634.0,1633.9,15.07280098]
[1693741140855,12.24068,1634.0,1633.9,12.01242098]
[1693741141457,15.10784352,1634.0,1633.9,12.01242098]
[1693741142563,12.24068,1634.0,1633.9,12.01242098]
[1693741143861,15.10784352,1634.0,1633.9,12.01242098]
[1693741149967,12.24068,1634.0,1633.9,12.01242098]
[1693741152368,15.10784352,1634.0,1633.9,12.01242098]
[1693741152769,16.71402687,1634.0,1633.9,12.01242098]
[1693741154365,17.51711855,1634.0,1633.9,16.02978318]
[1693741158278,17.51711855,1634.0,1633.9,19.09016318]
[1693741158479,14.64995503,1634.0,1633.9,19.09016318]
[1693741162485,12.24068,1634.0,1633.9,15.07280098]
[1693741166087,15.10784352,1634.0,1633.9,15.07280098]
[1693741168789,12.24068,1634.0,1633.9,15.07280098]
[1693741169388,15.10784352,1634.0,1633.9,15.07280098]
[1693741169592,19.12337115,1634.0,1633.9,19.09013439]
[1693741170186,16.25620763,1634.0,1633.9,19.09013439]
[1693741171894,19.12337115,1634.0,1633.9,19.09013439]
[1693741174795,13.19603763,1634.0,1633.9,19.09013439]
[1693741175000,10.7867626,1634.0,1633.9,19.09013439]
[1693741177601,9.18051,1634.0,1633.9,15.07280098]
[1693741184511,10.7867626,1634.0,1633.9,19.08942684]
[1693741191516,9.18051,1634.0,1633.9,15.07280098]
[1693741199623,10.7867626,1634.0,1633.9,19.08923075]
[1693741202523,10.7867626,1634.0,1633.9,18.99793255]
[1693741206732,9.18051,1634.0,1633.9,14.98150278]
[1693741207429,9.18051,1634.0,1633.9,17.58522398]
[1693741207629,7.0744126,1634.1,1633.9,22.4060313]
[1693741207833,13.1945226,1634.1,1634.0,5.33011648]
[1693741209030,13.1945226,1634.1,1634.0,8.39029648]
[1693741211331,16.06168612,1634.1,1634.0,8.39029648]
[1693741211738,13.1945226,1634.1,1634.0,8.39029648]
[1693741214736,13.1945226,1634.1,1634.0,12.40612915]
[1693741219147,13.1945226,1634.1,1634.0,8.39029648]
[1693741220641,13.1945226,1634.1,1634.0,8.87099872]
[1693741221346,13.1945226,1634.1,1634.0,11.93117872]
[1693741221347,11.58827,1634.1,1634.0,11.93117872]
[1693741221841,13.1945226,1634.1,1634.0,15.94676607]
[1693741222339,4.92537503,1634.2,1634.1,1.42369991]
[1693741222340,1.6054057,1634.2,1634.1,1.42369991]
[1693741222537,1.6054057,1634.2,1634.1,16.25528321]
[1693741222741,9.17917,1634.3,1634.1,22.77663898]
[1693741222942,9.17917,1634.3,1634.2,16.08396225]
[1693741223449,6.11911,1634.4,1634.2,26.47149063]
[1693741223653,6.11911,1634.4,1634.3,3.21086572]
[1693741223855,6.11911,1634.4,1634.3,12.38969572]
[1693741224055,6.11911,1634.4,1634.3,19.04000475]
[1693741227054,8.57277,1634.5,1634.3,22.09961475]
[1693741227354,11.63211,1634.5,1634.4,16.08279211]
[1693741227755,11.63211,1634.5,1634.4,25.39087539]
[1693741228053,6.11865,1634.5,1634.4,22.75627539]
[1693741228255,6.11865,1634.5,1634.4,25.39087539]
[1693741229656,6.11865,1634.5,1634.4,24.58292869]
[1693741229952,6.11865,1634.5,1634.4,22.18000967]
[1693741230548,6.11865,1634.5,1634.4,25.38382888]
[1693741232848,6.11831,1634.6,1634.4,28.44325888]
[1693741233043,9.17749,1634.6,1634.5,11.5792755]
[1693741233444,9.17749,1634.6,1634.5,18.23585537]
[1693741234451,9.17749,1634.6,1634.5,15.83429987]
[1693741237859,9.17749,1634.6,1634.5,12.77505987]
[1693741253762,9.17749,1634.6,1634.5,15.83429987]
[1693741255664,9.17749,1634.6,1634.5,18.23585537]
[1693741258572,9.17749,1634.6,1634.5,15.17661537]
[1693741260172,9.17749,1634.6,1634.5,12.77505987]
[1693741262274,12.04465352,1634.6,1634.5,12.77505987]
[1693741263071,9.17749,1634.6,1634.5,12.77505987]
[1693741265673,9.17749,1634.6,1634.5,15.17661537]
[1693741266071,9.17749,1634.6,1634.5,12.77505987]
[1693741266271,12.04465352,1634.6,1634.5,15.17661537]
[1693741266468,12.04465352,1634.6,1634.5,12.77505987]
[1693741266667,12.04465352,1634.6,1634.5,15.17661537]
[1693741266668,9.17749,1634.6,1634.5,15.17661537]
[1693741268679,9.17749,1634.6,1634.5,15.97887908]
[1693741270075,12.04465352,1634.6,1634.5,15.97887908]
[1693741270668,9.17749,1634.6,1634.5,15.97887908]
[1693741272679,9.17749,1634.6,1634.5,12.77505987]
[1693741273282,9.17749,1634.6,1634.5,16.79038308]
[1693741274182,9.17749,1634.6,1634.5,15.98539804]
[1693741277784,9.17749,1634.6,1634.5,12.77505987]
[1693741278588,9.17749,1634.6,1634.5,16.79038308]
[1693741282283,9.17749,1634.6,1634.5,12.77505987]
[1693741287191,12.04465352,1634.6,1634.5,12.77505987]
[1693741288391,9.17749,1634.6,1634.5,12.77505987]
[1693741291895,12.04465352,1634.6,1634.5,12.77505987]
[1693741292898,9.17749,1634.6,1634.5,12.77505987]
[1693741297303,9.17749,1634.6,1634.5,16.79031246]
[1693741298599,12.04465352,1634.6,1634.5,16.79031246]
[1693741298806,9.17749,1634.6,1634.5,16.79031246]
[1693741304412,9.17749,1634.6,1634.5,12.77505987]
[1693741309710,12.04465352,1634.6,1634.5,12.77505987]
[1693741312414,12.04465352,1634.6,1634.5,16.79049282]
[1693741316316,9.17749,1634.6,1634.5,16.79049282]
[1693741317819,12.04465352,1634.6,1634.5,16.79049282]
[1693741318419,9.17749,1634.6,1634.5,16.79049282]
[1693741319617,9.17749,1634.6,1634.5,17.59586719]
[1693741320415,12.04465352,1634.6,1634.5,17.59586719]
[1693741325123,9.17749,1634.6,1634.5,17.59586719]
[1693741325422,12.04465352,1634.6,1634.5,17.59586719]
[1693741325724,9.17749,1634.6,1634.5,17.59586719]
[1693741331227,9.17749,1634.6,1634.5,20.65510719]
[1693741331920,9.17749,1634.6,1634.5,17.59586719]
[1693741334727,9.17749,1634.6,1634.5,12.77505987]
[1693741335531,9.17749,1634.6,1634.5,15.83429987]
[1693741336025,6.11831,1634.6,1634.5,15.83429987]
[1693741342833,6.11831,1634.6,1634.5,20.65510719]
[1693741349636,7.72440637,1634.6,1634.5,15.83429987]
[1693741353236,13.71186989,1634.6,1634.5,6.65657987]
[1693741353442,19.17939247,1634.6,1634.5,10.67183577]
[1693741353633,19.17939247,1634.6,1634.5,7.0744959]
[1693741354338,16.77104989,1634.6,1634.5,7.0744959]
[1693741355746,16.77104989,1634.6,1634.5,8.49819581]
[1693741355940,13.71186989,1634.6,1634.5,11.55743581]
[1693741356545,13.71186989,1634.6,1634.5,7.54217991]
[1693741356838,12.10577352,1634.6,1634.5,12.36298723]
[1693741358449,9.23861,1634.6,1634.5,12.36298723]
[1693741359043,12.10577352,1634.6,1634.5,12.36298723]
[1693741359848,12.10577352,1634.6,1634.5,10.93928732]
[1693741364957,12.10577352,1634.6,1634.5,6.11848]
[1693741364958,13.71186989,1634.6,1634.5,6.11848]
[1693741366863,13.71186989,1634.6,1634.5,8.60808]
[1693741371766,12.10577352,1634.6,1634.5,13.42888732]
[1693741372163,12.04457352,1634.6,1634.5,13.42888732]
[1693741372371,3.05905,1634.6,1634.5,27.38392004]
[1693741372766,6.1181,1634.6,1634.5,27.38392004]
[1693741372969,6.1181,1634.6,1634.5,24.32468004]
[1693741373869,9.17715,1634.6,1634.5,24.32468004]
[1693741375874,12.04431352,1634.6,1634.5,21.26544004]
[1693741377879,12.04431352,1634.6,1634.5,19.84174013]
[1693741378876,12.04431352,1634.6,1634.5,21.26544004]
[1693741380170,12.04431352,1634.6,1634.5,19.84174013]
[1693741380579,12.04431352,1634.6,1634.5,21.26544004]
[1693741383084,12.04431352,1634.6,1634.5,19.84174013]
[1693741386887,12.04431352,1634.6,1634.5,15.02093281]
[1693741395091,12.04431352,1634.6,1634.5,19.84174013]
[1693741395289,12.04431352,1634.6,1634.5,21.26544004]
[1693741395493,12.04431352,1634.6,1634.5,19.84174013]
[1693741398194,9.17715,1634.6,1634.5,21.26544004]
[1693741398791,12.04431352,1634.6,1634.5,19.84174013]
[1693741399288,12.04431352,1634.6,1634.5,21.26544004]
[1693741401291,12.04431352,1634.6,1634.5,19.84174013]
[1693741402193,12.04431352,1634.6,1634.5,15.02093281]
[1693741410095,12.04431352,1634.6,1634.5,19.83838691]
[1693741415105,12.04431352,1634.6,1634.5,21.26208682]
[1693741415403,12.04431352,1634.6,1634.5,19.83838691]
[1693741415805,12.04431352,1634.6,1634.5,21.26208682]
[1693741417906,12.04431352,1634.6,1634.5,19.83838691]
[1693741423619,12.04431352,1634.6,1634.5,21.26208682]
[1693741424123,12.04431352,1634.6,1634.5,18.20284682]
[1693741425418,12.04431352,1634.6,1634.5,13.38539272]
[1693741425620,12.04431352,1634.6,1634.5,11.96169281]
[1693741427422,12.04431352,1634.6,1634.5,15.02093281]
[1693741427725,12.04431352,1634.6,1634.5,16.44463272]
[1693741429027,12.04431352,1634.6,1634.5,15.02093281]
[1693741429527,12.04431352,1634.6,1634.5,13.38539272]
[1693741430916,12.04431352,1634.6,1634.5,11.96169281]
[1693741431627,12.04431352,1634.6,1634.5,15.02093281]
[1693741431930,12.04431352,1634.6,1634.5,11.96169281]
[1693741432127,12.04431352,1634.6,1634.5,13.38539272]
[1693741432325,12.04431352,1634.6,1634.5,18.20284682]
[1693741432833,12.04431352,1634.6,1634.5,16.77914691]
[1693741434233,12.04431352,1634.6,1634.5,18.20284682]
[1693741434735,12.04431352,1634.6,1634.5,21.26208682]
[1693741434933,12.04431352,1634.6,1634.5,18.20284682]
[1693741435332,9.17715,1634.6,1634.5,21.26208682]
[1693741435635,12.04431352,1634.6,1634.5,21.26208682]
[1693741436138,12.04431352,1634.6,1634.5,18.20284682]
[1693741436335,12.04431352,1634.6,1634.5,21.26208682]
[1693741437137,12.04431352,1634.6,1634.5,18.20284682]
[1693741437834,12.04431352,1634.6,1634.5,21.26208682]
[1693741438631,9.17715,1634.6,1634.5,21.26208682]
[1693741439136,12.04431352,1634.6,1634.5,13.71990691]
[1693741439339,16.76973968,1634.6,1634.5,8.90245281]
[1693741440035,16.76973968,1634.6,1634.5,11.96169281]
[1693741441337,13.71068968,1634.6,1634.5,11.96169281]
[1693741442241,12.10551352,1634.6,1634.5,11.96169281]
[1693741442442,12.10551352,1634.6,1634.5,15.02093281]
[1693741444346,12.10551352,1634.6,1634.5,16.44463272]
[1693741445347,12.10551352,1634.6,1634.5,15.02093281]
[1693741445848,12.10551352,1634.6,1634.5,16.44463272]
[1693741447150,12.10551352,1634.6,1634.5,15.02093281]
[1693741447348,12.10551352,1634.6,1634.5,19.83838691]
[1693741448749,12.10551352,1634.6,1634.5,21.26208682]
[1693741450447,12.10551352,1634.6,1634.5,21.26231288]
[1693741454347,12.10551352,1634.6,1634.5,16.44463272]
[1693741454752,9.23835,1634.6,1634.5,16.44463272]
[1693741455052,12.10551352,1634.6,1634.5,16.44463272]
[1693741459054,12.10551352,1634.6,1634.5,15.02093281]
[1693741459857,12.04431352,1634.6,1634.5,15.02093281]
[1693741462363,12.04431352,1634.6,1634.5,19.83861297]
[1693741462960,12.04431352,1634.6,1634.5,21.26231288]
[1693741465862,12.04431352,1634.6,1634.5,19.83861297]
[1693741467825,12.04431352,1634.6,1634.5,19.83848566]
[1693741470369,12.04431352,1634.6,1634.5,21.26218557]
[1693741471062,9.17715,1634.6,1634.5,21.26218557]
[1693741472266,9.17715,1634.6,1634.5,24.32142557]
[1693741473171,12.04431352,1634.6,1634.5,24.32142557]
[1693741474171,9.17715,1634.6,1634.5,24.32142557]
[1693741477671,9.17715,1634.6,1634.5,19.50387272]
[1693741479674,3.05905,1634.6,1634.5,19.50387272]
[1693741480067,13.19905189,1634.7,1634.5,19.50387272]
[1693741480280,13.19905189,1634.7,1634.6,4.01468353]
[1693741480475,16.06621541,1634.7,1634.6,12.69078353]
[1693741480669,13.65849038,1634.7,1634.6,19.68938048]
[1693741482277,13.65849038,1634.7,1634.6,16.63033048]
[1693741484585,12.05334036,1634.7,1634.6,12.61564695]
[1693741492690,13.65849038,1634.7,1634.6,16.63022345]
[1693741495682,13.65849038,1634.7,1634.6,17.11421008]
[1693741499795,12.05334036,1634.7,1634.6,13.09963358]
[1693741505299,12.05334036,1634.7,1634.6,10.04058358]
[1693741507300,12.05334036,1634.7,1634.6,13.09964358]
[1693741507791,13.65849038,1634.7,1634.6,17.11424899]
[1693741510092,10.79132686,1634.7,1634.6,18.5379489]
[1693741514910,9.18617684,1634.7,1634.6,14.52334349]
[1693741515409,9.18617684,1634.7,1634.6,19.34089634]
[1693741522010,9.18617684,1634.7,1634.6,18.53871636]
[1693741522011,13.19905189,1634.7,1634.6,18.53871636]
[1693741522414,16.06621541,1634.7,1634.6,18.53871636]
[1693741526518,16.06621541,1634.7,1634.6,14.12932995]
[1693741529726,16.06621541,1634.7,1634.6,16.69102995]
[1693741529928,12.05334036,1634.7,1634.6,18.91690984]
[1693741530626,9.18617684,1634.7,1634.6,18.91690984]
[1693741531129,12.05334036,1634.7,1634.6,18.91690984]
[1693741531429,12.05334036,1634.7,1634.6,15.85784984]
[1693741531724,12.05334036,1634.7,1634.6,18.91689984]
[1693741534719,12.05334036,1634.7,1634.6,17.49319993]
[1693741535126,12.05334036,1634.7,1634.6,18.91689984]
[1693741537127,12.05334036,1634.7,1634.6,14.09934699]
[1693741537827,12.05334036,1634.7,1634.6,12.67564708]
[1693741539125,12.05334036,1634.7,1634.6,9.61659708]
[1693741539525,12.05334036,1634.7,1634.6,12.67564708]
[1693741540122,12.05334036,1634.7,1634.6,14.09934699]
[1693741540431,12.05334036,1634.7,1634.6,11.04029699]
[1693741542334,9.18617684,1634.7,1634.6,14.09935699]
[1693741545136,9.18617684,1634.7,1634.6,15.05586778]
[1693741545137,13.19905189,1634.7,1634.6,15.05586778]
[1693741546541,13.19905189,1634.7,1634.6,18.11491778]
[1693741547041,13.19905189,1634.7,1634.6,15.05586778]
[1693741550047,16.06621541,1634.7,1634.6,15.05586778]
[1693741552048,12.05334036,1634.7,1634.6,14.09935699]
[1693741552239,12.05334036,1634.7,1634.6,18.91690984]
[1693741552546,9.18617684,1634.7,1634.6,18.91690984]
[1693741552744,9.18617684,1634.7,1634.6,14.09935699]
[1693741567257,13.19905189,1634.7,1634.6,18.11490862]
[1693741570664,13.19905189,1634.7,1634.6,21.17397862]
[1693741575165,9.18617684,1634.7,1634.6,21.97597984]
[1693741582362,10.79132686,1634.7,1634.6,21.97597984]
[1693741582574,10.79132686,1634.7,1634.6,17.15842699]
[1693741583663,10.79132686,1634.7,1634.6,12.67565708]
[1693741583870,13.65849038,1634.7,1634.6,12.67565708]
[1693741586364,13.65849038,1634.7,1634.6,14.09935699]
[1693741590372,12.05334036,1634.7,1634.6,18.91690984]
[1693741594372,12.05334036,1634.7,1634.6,17.49320993]
[1693741596583,12.05334036,1634.7,1634.6,18.91690984]
[1693741597478,13.65849038,1634.7,1634.6,14.09935699]
[1693741601982,13.65849038,1634.7,1634.6,12.67565708]
[1693741602483,13.65849038,1634.7,1634.6,14.09935699]
[1693741604585,12.05334036,1634.7,1634.6,18.91690984]
[1693741605578,9.18617684,1634.7,1634.6,18.91690984]
[1693741608584,12.05334036,1634.7,1634.6,18.91690984]
[1693741612286,12.05334036,1634.7,1634.6,17.49320993]
[1693741612686,13.65849038,1634.7,1634.6,12.67565708]
[1693741614893,12.05334036,1634.7,1634.6,12.67565708]
[1693741615092,13.65867892,1634.7,1634.6,12.67565708]
[1693741619395,13.65867892,1634.7,1634.6,15.73472708]
[1693741619596,12.05334036,1634.7,1634.6,14.09935699]
[1693741619788,12.05334036,1634.7,1634.6,18.91689036]
[1693741620290,12.05334036,1634.7,1634.6,17.49319045]
[1693741627898,12.05334036,1634.7,1634.6,12.67565708]
[1693741634707,13.65867892,1634.7,1634.6,12.67565708]
[1693741642804,12.05334036,1634.7,1634.6,17.49319045]
[1693741643711,12.05334036,1634.7,1634.6,18.91689036]
[1693741644410,9.18617684,1634.7,1634.6,18.91689036]
[1693741648118,12.05334036,1634.7,1634.6,18.91689036]
[1693741648317,12.05334036,1634.7,1634.6,21.48569036]
[1693741649817,0.00917684,1634.7,1634.6,27.60383036]
[1693741650219,3.06806684,1634.7,1634.6,24.54476036]
[1693741650513,0.00917684,1634.7,1634.6,27.60383036]
[1693741650917,3.06806684,1634.7,1634.6,27.60383036]
[1693741651320,0.00917684,1634.7,1634.6,27.60383036]
[1693741651619,3.06806684,1634.7,1634.6,27.60383036]
[1693741654022,6.12695684,1634.7,1634.6,24.54476036]
[1693741657928,6.12695684,1634.7,1634.6,19.72722699]
[1693741658126,1.6145154,1634.7,1634.6,22.78629699]
[1693741658331,0.00917684,1634.7,1634.6,22.78629699]
[1693741659329,3.06806684,1634.7,1634.6,22.78629699]
[1693741659528,0.00917684,1634.7,1634.6,22.78629699]
[1693741660623,0.00917684,1634.7,1634.6,25.84536699]
[1693741661026,0.00917684,1634.7,1634.6,30.66290036]
[1693741662429,0.00917684,1634.7,1634.6,25.84536699]
[1693741664932,0.00917684,1634.7,1634.6,31.46582259]
[1693741665133,0.00917684,1634.7,1634.6,25.84536699]
[1693741666036,0.00917684,1634.7,1634.6,31.46582259]
[1693741666228,0.00917684,1634.7,1634.6,25.84536699]
[1693741666730,0.00917684,1634.7,1634.6,31.46582259]
[1693741668235,0.00917684,1634.7,1634.6,25.84536699]
[1693741669337,0.00917684,1634.7,1634.6,30.65849312]
[1693741671441,0.00917684,1634.7,1634.6,25.84536699]
[1693741672136,0.00917684,1634.7,1634.6,30.65787259]
[1693741673037,0.00917684,1634.7,1634.6,25.84536699]
[1693741673537,0.00917684,1634.7,1634.6,26.76563715]
[1693741676545,0.00917684,1634.7,1634.6,31.57814275]
[1693741679748,0.00917684,1634.7,1634.6,26.76563715]
[1693741679950,0.00917684,1634.7,1634.6,31.57814275]
[1693741687078,0.00917684,1634.7,1634.6,26.76563715]
[1693741688158,0.00917684,1634.7,1634.6,31.57814275]
[1693741688558,0.00917684,1634.7,1634.6,26.76563715]
[1693741689054,0.00917684,1634.7,1634.6,31.57814275]
[1693741695165,0.00917684,1634.7,1634.6,37.19859835]
[1693741695464,0.00917684,1634.7,1634.6,32.38609275]
[1693741702271,0.00917684,1634.7,1634.6,31.57999341]
[1693741710372,0.00917684,1634.7,1634.6,26.76563715]
[1693741710875,0.00917684,1634.7,1634.6,33.18901498]
[1693741717281,0.00917684,1634.7,1634.6,38.80937176]
[1693741717481,0.00917684,1634.7,1634.6,32.38599393]
[1693741725388,0.00917684,1634.7,1634.6,31.58349234]
[1693741732386,0.00917684,1634.7,1634.6,26.76563715]
[1693741732588,0.00917684,1634.7,1634.6,33.18901498]
[1693741740496,0.00917684,1634.7,1634.6,32.38628873]
[1693741747604,0.00917684,1634.7,1634.6,33.18901498]
[1693741755514,0.00917684,1634.7,1634.6,32.38588]
[1693741769619,0.00917684,1634.7,1634.6,33.18901498]
[1693741777623,0.00917684,1634.7,1634.6,38.80833886]
[1693741778124,0.00917684,1634.7,1634.6,32.38496103]
[1693741781931,0.00917684,1634.7,1634.6,32.38482717]
[1693741784930,0.00917684,1634.7,1634.6,33.18756861]
[1693741789628,2.87634036,1634.7,1634.6,33.18756861]
[1693741790130,0.00917684,1634.7,1634.6,33.18756861]
[1693741792828,0.00917684,1634.7,1634.6,38.80628835]
[1693741793027,0.00917684,1634.7,1634.6,32.38435689]
[1693741799052,0.00917684,1634.7,1634.6,26.76563715]
[1693741799255,0.00917684,1634.7,1634.6,32.38442653]
[1693741799847,0.00917684,1634.7,1634.6,33.18711073]
[1693741814959,0.00917684,1634.7,1634.6,38.80678857]
[1693741815165,0.00917684,1634.7,1634.6,32.38531499]
[1693741822966,0.00917684,1634.7,1634.6,38.80678857]
[1693741823272,0.00917684,1634.7,1634.6,33.18711073]
[1693741830072,0.00917684,1634.7,1634.6,32.38553548]
[1693741831576,15.26466316,1634.7,1634.5,4.01602381]
[1693741831773,0.0612,1634.5,1634.3,4.01081678]
[1693741831975,10.78300602,1634.4,1634.3,4.0109162]
[1693741832279,10.78300602,1634.4,1634.1,3.06023]
[1693741832280,15.75931993,1634.4,1634.1,3.06023]
[1693741832478,7.78460235,1634.2,1634.1,6.12054]
[1693741832681,10.84471235,1634.2,1634.1,3.06023]
[1693741832902,9.24153,1634.2,1634.1,3.06028]
[1693741833584,9.24153,1634.2,1634.0,11.65748]
[1693741833979,9.24153,1634.2,1634.1,6.95819701]
[1693741834679,10.84471235,1634.2,1634.1,6.95819701]
[1693741835079,10.84820332,1634.2,1634.1,6.95819701]
[1693741836183,10.84349591,1634.2,1634.1,6.95819701]
[1693741837687,13.24120832,1634.2,1634.1,6.95819701]
[1693741838088,9.24502097,1634.2,1634.1,6.95819701]
[1693741839186,13.90360591,1634.2,1634.1,6.95819701]
[1693741840084,13.90360591,1634.2,1634.0,8.59721]
[1693741840280,13.90360591,1634.2,1634.0,5.53673]
[1693741842091,13.90360591,1634.2,1634.0,6.0310922]
[1693741842691,16.24011832,1634.2,1634.0,6.0310922]
[1693741842993,12.24393097,1634.2,1634.0,6.0310922]
[1693741843288,16.23198877,1634.2,1634.0,6.0310922]
[1693741843691,16.29318877,1634.2,1634.0,5.11293872]
[1693741843891,16.29318877,1634.2,1634.0,2.05250872]
[1693741844191,16.29318877,1634.2,1634.0,5.11298872]
[1693741844792,1.59522312,1634.1,1634.0,5.11298872]
[1693741844988,10.77612312,1634.1,1634.0,5.11298872]
[1693741845185,10.77946025,1634.1,1634.0,5.11298872]
[1693741849099,10.77946025,1634.1,1634.0,8.17346872]
[1693741849692,13.17229493,1634.1,1634.0,8.17346872]
[1693741850697,13.17229493,1634.1,1634.0,6.64321633]
[1693741851095,13.17229493,1634.1,1634.0,6.64322633]
[1693741852190,12.68073392,1634.1,1634.0,6.64322633]
[1693741854200,12.68073392,1634.1,1634.0,3.58273633]
[1693741855100,12.68073392,1634.1,1634.0,6.64322633]
[1693741857709,12.68073392,1634.1,1634.0,4.50087304]
[1693741860304,11.57528355,1634.1,1634.0,4.50087304]
[1693741860920,11.57528355,1634.1,1634.0,9.93333656]
[1693741861106,11.57528355,1634.1,1634.0,6.87284656]
[1693741862501,11.57528355,1634.1,1634.0,7.06617304]
[1693741862700,11.57528355,1634.1,1634.0,7.55813566]
[1693741864605,11.88133395,1634.1,1634.0,7.55813566]
[1693741865106,11.88133395,1634.1,1634.0,4.49764566]
[1693741867211,9.49028753,1634.1,1634.0,4.49764566]
[1693741867607,13.47834533,1634.1,1634.0,4.49764566]
[1693741869710,19.599351,1634.1,1634.0,4.49764566]
[1693741870112,19.599351,1634.1,1634.0,7.55812566]
[1693741870309,19.599351,1634.1,1634.0,4.49764566]
[1693741873806,15.6112932,1634.1,1634.0,4.49764566]
[1693741875219,19.61213249,1634.1,1634.0,4.49764566]
[1693741875422,19.61213249,1634.1,1634.0,7.55812566]
[1693741876314,19.61213249,1634.1,1634.0,4.49764566]
[1693741876810,15.6112932,1634.1,1634.0,4.49764566]
[1693741877415,32.67839404,1634.1,1634.0,4.49764566]
[1693741877614,15.6112932,1634.1,1634.0,4.49764566]
[1693741877820,20.39696257,1634.1,1634.0,4.49764566]
[1693741878118,37.46406341,1634.1,1634.0,7.55812566]
[1693741878714,32.67839404,1634.1,1634.0,7.55812566]
[1693741879116,15.6112932,1634.1,1634.0,4.49764566]
[1693741882420,20.39696257,1634.1,1634.0,4.49764566]
[1693741882822,15.6112932,1634.1,1634.0,4.49764566]
[1693741883422,15.6112932,1634.1,1634.0,7.55812566]
[1693741884626,15.6112932,1634.1,1634.0,4.49764566]
[1693741885627,19.62475659,1634.1,1634.0,4.49764566]
[1693741886625,13.50375092,1634.1,1634.0,4.49764566]
[1693741886821,9.49028753,1634.1,1634.0,4.49764566]
[1693741887624,12.7010914,1634.1,1634.0,4.49764566]
[1693741888127,12.7010914,1634.1,1634.0,7.55812566]
[1693741888531,12.7010914,1634.1,1634.0,4.49764566]
[1693741888727,11.5923536,1634.1,1634.0,4.49764566]
[1693741890432,10.78964379,1634.1,1634.0,4.49764566]
[1693741901439,10.78964379,1634.1,1634.0,7.55812566]
[1693741902443,10.78964379,1634.1,1634.0,4.49764566]
[1693741905340,11.5923536,1634.1,1634.0,4.49764566]
[1693741912155,14.6526536,1634.1,1634.0,4.49764566]
[1693741912451,13.84993466,1634.1,1634.0,4.49764566]
[1693741914254,13.84993466,1634.1,1634.0,7.36480918]
[1693741920458,22.6850771,1634.1,1634.0,7.36480918]
[1693741921558,22.6850771,1634.1,1634.0,4.49764566]
[1693741926670,22.6850771,1634.1,1634.0,7.36480918]
[1693741927562,12.24453713,1634.1,1634.0,7.36480918]
[1693741933274,12.24453713,1634.1,1634.0,10.42528918]
[1693741934070,12.24453713,1634.1,1634.0,7.36480918]
[1693741934474,12.24453713,1634.1,1634.0,10.42528918]
[1693741935584,13.84993478,1634.1,1634.0,10.42528918]
[1693741937882,13.84993776,1634.1,1634.0,10.42528918]
[1693741941081,10.78963776,1634.1,1634.0,10.42528918]
[1693741942590,9.49028841,1634.1,1634.0,10.42528918]
[1693741942888,9.49028841,1634.1,1634.0,7.55812566]
[1693741943484,12.70108968,1634.1,1634.0,7.55812566]
[1693741945088,12.70108968,1634.1,1634.0,4.49764566]
[1693741946184,9.49028841,1634.1,1634.0,4.49764566]
[1693741948093,9.49028841,1634.1,1634.0,7.55812566]
[1693741948295,9.49028841,1634.1,1634.0,4.49764566]
[1693741949894,9.49028841,1634.1,1634.0,7.55812566]
[1693741950091,11.89831749,1634.1,1634.0,7.55812566]
[1693741950389,9.49028841,1634.1,1634.0,7.55812566]